bitfinex-derivatives/quotes_BTCF0:USTF0_20250902
["timestamp","ask_amount","ask_price","bid_price","bid_amount"]
[1756849404010,0.75553379,111500.0,111490.0,0.00548]
[1756849404417,1.00553379,111500.0,111490.0,0.00548]
[1756849405309,1.37073661,111500.0,111490.0,0.00548]
[1756849406116,0.27512815,111500.0,111490.0,0.00548]
[1756849406315,1.37073661,111500.0,111490.0,0.00548]
[1756849406515,1.37073661,111500.0,111490.0,0.001]
[1756849408109,1.41914657,111500.0,111490.0,0.001]
[1756849408314,1.46846936,111500.0,111490.0,0.001]
[1756849409319,1.51687932,111500.0,111480.0,0.00458]
[1756849409523,0.73040564,111490.0,111480.0,0.00458]
[1756849409722,0.75153379,111490.0,111480.0,0.00448]
[1756849410519,0.75153379,111490.0,111480.0,0.00548]
[1756849411016,0.75153379,111490.0,111480.0,0.00448]
[1756849411320,1.59557379,111490.0,111480.0,0.00548]
[1756849411710,1.59657379,111490.0,111480.0,0.00548]
[1756849412522,1.59557379,111490.0,111480.0,0.00448]
[1756849412722,1.60257379,111490.0,111480.0,0.00548]
[1756849412925,1.60657379,111490.0,111480.0,0.00648]
[1756849417717,1.24137097,111490.0,111480.0,0.02937]
[1756849417919,1.60657379,111490.0,111480.0,0.00648]
[1756849419230,1.9579724,111490.0,111480.0,0.00648]
[1756849419630,1.9579724,111490.0,111480.0,0.002]
[1756849420134,2.32317522,111490.0,111480.0,0.002]
[1756849426331,2.07317522,111490.0,111480.0,0.002]
[1756849426631,2.07097522,111490.0,111480.0,0.002]
[1756849426835,2.07097522,111490.0,111470.0,0.00458]
[1756849427132,1.09560846,111480.0,111470.0,0.00458]
[1756849427333,1.11673661,111480.0,111470.0,0.00448]
[1756849428327,1.11673661,111480.0,111470.0,0.00548]
[1756849428328,1.12273661,111480.0,111470.0,0.00548]
[1756849428532,1.12273661,111480.0,111470.0,0.02962]
[1756849429835,1.12673661,111480.0,111470.0,0.03062]
[1756849430730,2.06446839,111480.0,111470.0,0.00648]
[1756849431623,2.06446839,111480.0,111470.0,0.002]
[1756849433337,2.06362839,111480.0,111470.0,0.002]
[1756849433536,1.69881279,111480.0,111470.0,0.002]
[1756849433923,0.85973279,111480.0,111470.0,0.0501]
[1756849434128,1.69881279,111480.0,111470.0,0.002]
[1756849436328,1.74722275,111480.0,111470.0,0.002]
[1756849436823,1.69881279,111480.0,111470.0,0.002]
[1756849438329,1.74722275,111480.0,111470.0,0.002]
[1756849440831,1.01618989,111480.0,111470.0,0.002]
[1756849441031,1.74722275,111480.0,111470.0,0.002]
[1756849442334,1.74722275,111480.0,111470.0,0.02614]
[1756849442738,1.74722275,111480.0,111470.0,0.002]
[1756849443941,1.74722275,111480.0,111470.0,0.02614]
[1756849444140,1.74722275,111480.0,111470.0,0.002]
[1756849445241,1.74722275,111480.0,111470.0,0.0501]
[1756849445741,1.01618989,111480.0,111470.0,0.0501]
[1756849445933,1.74722275,111480.0,111470.0,0.0501]
[1756849446134,1.69881279,111480.0,111470.0,0.0501]
[1756849446451,0.90814275,111480.0,111470.0,0.0501]
[1756849446742,1.74546275,111480.0,111470.0,0.0501]
[1756849447543,1.69705279,111480.0,111470.0,0.0501]
[1756849448942,1.69705279,111480.0,111470.0,0.08736]
[1756849449446,1.69705279,111480.0,111470.0,0.0501]
[1756849449740,1.69705279,111480.0,111470.0,0.08736]
[1756849450138,1.69705279,111480.0,111470.0,0.0501]
[1756849450641,1.69705279,111480.0,111470.0,0.08736]
[1756849451033,1.69705279,111480.0,111470.0,0.0501]
[1756849452744,1.74546275,111480.0,111470.0,0.0501]
[1756849453044,1.74546275,111480.0,111470.0,0.08736]
[1756849453545,1.74546275,111480.0,111470.0,0.0501]
[1756849456838,1.69705279,111480.0,111470.0,0.0501]
[1756849457946,0.85973279,111480.0,111470.0,0.0501]
[1756849458145,1.69689279,111480.0,111470.0,0.08736]
[1756849459548,1.69689279,111480.0,111470.0,0.0501]
[1756849461752,1.74530275,111480.0,111470.0,0.0501]
[1756849469555,0.90814275,111480.0,111470.0,0.0501]
[1756849469754,1.74270275,111480.0,111470.0,0.0501]
[1756849471058,0.90814275,111480.0,111470.0,0.0501]
[1756849471248,1.74238275,111480.0,111470.0,0.0501]
[1756849476264,0.90814275,111480.0,111470.0,0.002]
[1756849476458,1.69281279,111480.0,111470.0,0.002]
[1756849478261,0.85973279,111480.0,111470.0,0.002]
[1756849478468,1.69253279,111480.0,111470.0,0.002]
[1756849479268,1.69253279,111480.0,111470.0,0.02541]
[1756849479667,1.69253279,111480.0,111470.0,0.002]
[1756849479861,1.7425048,111480.0,111470.0,0.002]
[1756849480261,2.10802123,111480.0,111460.0,0.0001]
[1756849480461,2.10802123,111480.0,111460.0,0.046]
[1756849480462,0.73103286,111470.0,111460.0,0.046]
[1756849480656,0.75216101,111470.0,111460.0,0.0459]
[1756849481473,0.39164458,111470.0,111460.0,0.0469]
[1756849481670,1.22408458,111470.0,111460.0,0.0469]
[1756849482174,1.22408458,111470.0,111460.0,0.0479]
[1756849482575,1.22408458,111470.0,111460.0,0.002]
[1756849482776,1.58960101,111470.0,111460.0,0.002]
[1756849482975,1.59360101,111470.0,111460.0,0.002]
[1756849483178,1.22808458,111470.0,111460.0,0.0246]
[1756849484076,1.22808458,111470.0,111460.0,0.08456]
[1756849484275,1.22808458,111470.0,111460.0,0.04876]
[1756849485171,1.22808458,111470.0,111460.0,0.08456]
[1756849485371,1.22808458,111470.0,111460.0,0.04876]
[1756849486271,1.22812458,111470.0,111460.0,0.04876]
[1756849487076,1.22812458,111470.0,111460.0,0.08456]
[1756849487276,1.22812458,111470.0,111460.0,0.04876]
[1756849487676,1.22812458,111470.0,111460.0,0.002]
[1756849487979,1.59364101,111470.0,111460.0,0.04876]
[1756849488372,1.22812458,111470.0,111460.0,0.0246]
[1756849489184,1.22812458,111470.0,111460.0,0.002]
[1756849489879,1.22812458,111470.0,111460.0,0.0246]
[1756849491080,1.22812458,111470.0,111460.0,0.002]
[1756849491481,1.22812458,111470.0,111460.0,0.0246]
[1756849492382,1.22812458,111470.0,111460.0,0.002]
[1756849492583,1.94419038,111470.0,111460.0,0.002]
[1756849495484,2.30983392,111470.0,111460.0,0.002]
[1756849496886,2.35824388,111470.0,111460.0,0.002]
[1756849499285,2.10824388,111470.0,111460.0,0.002]
[1756849501186,1.74268508,111470.0,111460.0,0.002]
[1756849503686,1.74268508,111470.0,111460.0,0.0246]
[1756849504188,1.74268508,111470.0,111460.0,0.002]
[1756849506792,2.10824388,111470.0,111460.0,0.002]
[1756849507292,2.05983392,111470.0,111460.0,0.002]
[1756849508094,2.05983392,111470.0,111460.0,0.0246]
[1756849508294,2.05983392,111470.0,111460.0,0.002]
[1756849508593,2.10824388,111470.0,111460.0,0.002]
[1756849510696,2.10824388,111470.0,111460.0,0.04942]
[1756849511197,2.10824388,111470.0,111460.0,0.02526]
[1756849514598,2.10824388,111470.0,111460.0,0.002]
[1756849516199,2.10824388,111470.0,111460.0,0.02526]
[1756849517192,2.05983392,111470.0,111460.0,0.002]
[1756849517696,1.22735392,111470.0,111460.0,0.002]
[1756849517899,2.06175392,111470.0,111460.0,0.002]
[1756849521403,2.06175392,111470.0,111460.0,0.02526]
[1756849521895,2.06175392,111470.0,111460.0,0.002]
[1756849522399,2.11016388,111470.0,111460.0,0.002]
[1756849524206,2.11016388,111470.0,111460.0,0.04854]
[1756849525408,2.11016388,111470.0,111460.0,0.002]
[1756849527101,2.11016388,111470.0,111460.0,0.02526]
[1756849528109,2.11016388,111470.0,111460.0,0.002]
[1756849531513,2.06175392,111470.0,111460.0,0.002]
[1756849534719,2.0622964,111470.0,111460.0,0.002]
[1756849536321,1.6967376,111470.0,111460.0,0.002]
[1756849536921,1.74514756,111470.0,111460.0,0.002]
[1756849537930,2.11070636,111470.0,111460.0,0.002]
[1756849538526,2.11070636,111470.0,111460.0,0.02577]
[1756849539829,2.11070636,111470.0,111460.0,0.002]
[1756849544922,2.0622964,111470.0,111460.0,0.002]
[1756849545430,2.06199011,111470.0,111460.0,0.002]
[1756849546132,2.06199011,111470.0,111450.0,0.08231]
[1756849546332,1.14512833,111460.0,111450.0,0.08231]
[1756849546635,1.16669896,111460.0,111450.0,0.08231]
[1756849547131,1.11824703,111460.0,111450.0,0.08231]
[1756849547333,1.11824703,111460.0,111450.0,0.08331]
[1756849547832,1.11824703,111460.0,111450.0,0.08231]
[1756849548034,1.12224703,111460.0,111450.0,0.08331]
[1756849548332,1.12524703,111460.0,111450.0,0.08331]
[1756849552728,1.12524703,111460.0,111450.0,0.04907]
[1756849553224,1.12524703,111460.0,111450.0,0.08331]
[1756849553636,1.12524703,111460.0,111450.0,0.04907]
[1756849553826,1.12524703,111460.0,111450.0,0.08331]
[1756849554027,1.12524703,111460.0,111450.0,0.04907]
[1756849555136,1.12524703,111460.0,111450.0,0.08331]
[1756849555437,0.75975057,111460.0,111450.0,0.08331]
[1756849557237,0.75975057,111460.0,111450.0,0.04907]
[1756849557934,0.8082025,111460.0,111450.0,0.04907]
[1756849558138,0.8082025,111460.0,111450.0,0.001]
[1756849558339,0.08276,111450.0,111440.0,0.03872]
[1756849558532,1.2983206,111450.0,111440.0,0.03872]
[1756849559240,1.2983206,111450.0,111430.0,0.00448]
[1756849559428,0.03698,111440.0,111430.0,0.04807]
[1756849559633,0.4360706,111440.0,111410.0,0.06452204]
[1756849559831,0.4360706,111440.0,111420.0,0.04807]
[1756849559832,2.41413,111430.0,111420.0,0.04807]
[1756849560040,2.44372476,111430.0,111420.0,0.08231]
[1756849560239,2.44372476,111430.0,111420.0,0.33231]
[1756849560638,2.44272476,111430.0,111420.0,0.33231]
[1756849560839,2.44272476,111430.0,111420.0,0.02377]
[1756849561140,3.1759047,111430.0,111420.0,0.02477]
[1756849561337,3.24924908,111430.0,111420.0,0.02477]
[1756849562035,2.42100908,111430.0,111420.0,0.02477]
[1756849562344,3.24924908,111430.0,111420.0,0.02477]
[1756849562739,3.24924908,111430.0,111420.0,0.02577]
[1756849563439,3.25324908,111430.0,111420.0,0.02477]
[1756849563637,3.25524908,111430.0,111420.0,0.02577]
[1756849564444,3.25524908,111430.0,111420.0,0.002]
[1756849568348,2.42700908,111430.0,111420.0,0.002]
[1756849568739,3.60600235,111430.0,111420.0,0.002]
[1756849570149,3.72278416,111430.0,111420.0,0.002]
[1756849570443,3.72292889,111430.0,111420.0,0.002]
[1756849573052,0.77945994,111420.0,111390.0,1.77475]
[1756849573252,0.45129997,111400.0,111390.0,0.05946]
[1756849573446,0.45129997,111400.0,111390.0,0.08401]
[1756849574554,0.45129997,111400.0,111390.0,0.08501]
[1756849576154,0.45429997,111400.0,111390.0,0.08501]
[1756849584463,0.45429997,111400.0,111390.0,0.04862]
[1756849585464,0.45429997,111400.0,111390.0,0.08501]
[1756849586368,0.47618229,111400.0,111390.0,0.08501]
[1756849586569,0.47618229,111400.0,111390.0,0.04862]
[1756849586767,0.47618229,111400.0,111390.0,0.08501]
[1756849592477,0.47618229,111400.0,111390.0,0.04862]
[1756849592774,0.47618229,111400.0,111390.0,0.08501]
[1756849593475,0.78618229,111400.0,111390.0,0.08501]
[1756849596675,1.15177226,111400.0,111390.0,0.001]
[1756849597472,1.40177226,111400.0,111390.0,0.001]
[1756849597678,1.41131226,111400.0,111390.0,0.001]
[1756849598082,1.40177226,111400.0,111390.0,0.001]
[1756849601986,1.40177226,111400.0,111390.0,0.02395]
[1756849602485,1.40177226,111400.0,111390.0,0.04875]
[1756849602687,1.86458229,111400.0,111390.0,0.04875]
[1756849605685,2.23017226,111400.0,111390.0,0.04875]
[1756849605888,2.23017226,111400.0,111390.0,0.02395]
[1756849606090,1.86458229,111400.0,111390.0,0.04875]
[1756849606388,2.23017226,111400.0,111390.0,0.04875]
[1756849606590,1.86458229,111400.0,111390.0,0.04875]
[1756849607384,2.23017226,111400.0,111390.0,0.04875]
[1756849608791,1.49899232,111400.0,111390.0,0.04875]
[1756849609090,1.86450229,111400.0,111390.0,0.04875]
[1756849609995,1.86450229,111400.0,111390.0,0.001]
[1756849610795,2.23009226,111400.0,111390.0,0.001]
[1756849612094,2.23009226,111400.0,111390.0,0.02395]
[1756849612491,1.98009226,111400.0,111390.0,0.001]
[1756849612897,1.98963226,111400.0,111390.0,0.001]
[1756849613800,1.98963226,111400.0,111390.0,0.01501703]
[1756849614394,1.24891232,111400.0,111390.0,0.01501703]
[1756849614595,1.98009226,111400.0,111390.0,0.01501703]
[1756849615398,1.24891232,111400.0,111390.0,0.01501703]
[1756849615595,1.98009226,111400.0,111390.0,0.01501703]
[1756849617495,2.34676739,111400.0,111390.0,0.01501703]
[1756849617696,2.34676739,111400.0,111390.0,0.001]
[1756849620208,1.51844739,111400.0,111390.0,0.001]
[1756849620408,2.34668739,111400.0,111390.0,0.001]
[1756849624906,2.35622739,111400.0,111390.0,0.001]
[1756849627506,2.34668739,111400.0,111390.0,0.001]
[1756849627901,2.35622739,111400.0,111390.0,0.001]
[1756849629006,2.35722739,111400.0,111390.0,0.001]
[1756849629200,1.54801,111390.0,111380.0,0.0001]
[1756849629404,0.08482,111380.0,111370.0,0.04782]
[1756849629708,1.6666857,111380.0,111370.0,0.04772]
[1756849630113,1.6666857,111380.0,111370.0,0.08206]
[1756849631013,1.6656857,111380.0,111370.0,0.08206]
[1756849631318,0.8376057,111380.0,111370.0,0.08206]
[1756849631513,0.8396057,111380.0,111370.0,0.08206]
[1756849631815,0.8406057,111380.0,111370.0,0.08406]
[1756849632312,1.56655739,111380.0,111370.0,0.002]
[1756849632705,1.56655739,111380.0,111370.0,0.02492]
[1756849632906,1.56655739,111380.0,111370.0,0.002]
[1756849633312,1.56655739,111380.0,111360.0,0.0001]
[1756849633512,1.64157338,111370.0,111360.0,0.0001]
[1756849633713,1.9734557,111370.0,111350.0,0.03444]
[1756849633913,0.81353338,111360.0,111350.0,0.07995]
[1756849634107,0.8354157,111360.0,111350.0,0.32985]
[1756849634311,0.8334157,111360.0,111350.0,0.07985]
[1756849634530,1.12153338,111360.0,111350.0,0.07985]
[1756849635213,1.12453338,111360.0,111350.0,0.08285]
[1756849635817,1.49048507,111360.0,111350.0,0.04851]
[1756849636022,1.49048507,111360.0,111350.0,0.03993615]
[1756849636216,1.49048507,111360.0,111350.0,0.01701615]
[1756849636520,1.51238388,111360.0,111350.0,0.01701615]
[1756849636819,1.51138388,111360.0,111350.0,0.01501615]
[1756849637820,1.58266984,111360.0,111350.0,0.01501615]
[1756849638019,1.58266984,111360.0,111350.0,0.03793615]
[1756849638216,1.58266984,111360.0,111350.0,0.01501615]
[1756849638516,1.59188994,111360.0,111350.0,0.01501615]
[1756849639021,1.59188994,111360.0,111350.0,0.001]
[1756849639520,0.49603487,111360.0,111350.0,0.04651]
[1756849639714,2.05601825,111360.0,111350.0,0.04651]
[1756849640019,2.05601825,111360.0,111350.0,0.02392]
[1756849640222,2.42196994,111360.0,111350.0,0.04651]
[1756849640419,1.32411487,111360.0,111350.0,0.04651]
[1756849640619,2.42196994,111360.0,111350.0,0.04651]
[1756849641523,2.42196994,111360.0,111350.0,0.02392]
[1756849644919,2.42196994,111360.0,111350.0,0.001]
[1756849645316,2.42196994,111360.0,111350.0,0.02392]
[1756849647025,1.32411487,111360.0,111350.0,0.04651]
[1756849647226,2.42196994,111360.0,111350.0,0.001]
[1756849648525,2.42196994,111360.0,111350.0,0.02392]
[1756849651926,2.42196994,111360.0,111350.0,0.001]
[1756849653429,2.42296994,111360.0,111350.0,0.001]
[1756849653629,2.42296994,111360.0,111350.0,0.04651]
[1756849654132,1.59488994,111360.0,111350.0,0.04651]
[1756849654323,2.42300994,111360.0,111350.0,0.08085]
[1756849656026,2.42300994,111360.0,111350.0,0.04651]
[1756849656627,2.42300994,111360.0,111350.0,0.08085]
[1756849663140,2.42300994,111360.0,111350.0,0.04651]
[1756849663342,2.42300994,111360.0,111350.0,0.08046]
[1756849664541,2.42292994,111360.0,111350.0,0.08046]
[1756849667544,2.42292994,111360.0,111350.0,0.04651]
[1756849673141,2.42292994,111360.0,111350.0,0.02392]
[1756849673451,2.42292994,111360.0,111350.0,0.04687]
[1756849676250,2.42292994,111360.0,111350.0,0.08082]
[1756849676450,2.42292994,111360.0,111350.0,0.04687]
[1756849678041,2.42292994,111360.0,111350.0,0.02392]
[1756849679155,2.42292994,111360.0,111350.0,0.04687]
[1756849679457,2.05744319,111360.0,111350.0,0.02392]
[1756849679957,1.22940319,111360.0,111350.0,0.02392]
[1756849680142,2.05724319,111360.0,111350.0,0.04687]
[1756849681160,2.05724319,111360.0,111350.0,0.02392]
[1756849681951,2.05724319,111360.0,111350.0,0.04687]
[1756849684152,1.22940319,111360.0,111350.0,0.08082]
[1756849684356,2.05716319,111360.0,111350.0,0.08082]
[1756849688261,1.22940319,111360.0,111350.0,0.10100603]
[1756849688456,0.86321903,111360.0,111350.0,0.10100603]
[1756849688662,0.86321903,111360.0,111350.0,0.11548603]
[1756849689564,0.84132022,111360.0,111350.0,0.11548603]
[1756849690463,0.84132022,111360.0,111350.0,0.36548603]
[1756849690663,0.78284022,111360.0,111350.0,0.36548603]
[1756849690962,0.07428596,111360.0,111350.0,0.36548603]
[1756849691163,0.003,111360.0,111350.0,0.36548603]
[1756849691356,0.003,111360.0,111350.0,1.19312603]
[1756849692357,0.003,111360.0,111350.0,1.20203959]
[1756849700766,0.03559,111380.0,111350.0,1.53427375]
[1756849700973,0.72177416,111380.0,111360.0,0.04838]
[1756849701271,0.76758416,111380.0,111370.0,0.91049]
[1756849701963,0.77739933,111380.0,111370.0,0.91049]
[1756849702173,0.78039933,111380.0,111370.0,0.91049]
[1756849702760,0.78439933,111380.0,111370.0,0.91049]
[1756849704370,0.85761865,111380.0,111370.0,0.91049]
[1756849716584,0.85761865,111380.0,111370.0,0.91009]
[1756849727189,0.87947262,111380.0,111370.0,0.91009]
[1756849728381,0.87947262,111380.0,111370.0,0.90981]
[1756849728790,0.87947262,111380.0,111370.0,0.85105]
[1756849728992,1.12947262,111380.0,111370.0,0.02437]
[1756849729193,0.08478,111370.0,111360.0,0.55234]
[1756849729389,0.82096416,111370.0,111360.0,0.04764]
[1756849729694,0.82096416,111370.0,111350.0,0.03634]
[1756849729891,0.45096416,111360.0,111350.0,0.08398]
[1756849730195,0.45096416,111360.0,111350.0,0.91052]
[1756849730492,0.44996416,111360.0,111350.0,0.91052]
[1756849730695,0.44896416,111360.0,111350.0,0.91052]
[1756849731193,0.44896416,111360.0,111350.0,0.91048]
[1756849731592,0.44896416,111360.0,111350.0,0.08388]
[1756849732090,0.45096416,111360.0,111350.0,0.91248]
[1756849732291,0.45296416,111360.0,111350.0,0.08588]
[1756849732592,0.81914832,111360.0,111350.0,0.87624]
[1756849732895,1.19098773,111360.0,111350.0,0.82856]
[1756849733392,1.44098773,111360.0,111350.0,0.002]
[1756849734187,0.08314,111350.0,111340.0,0.84640611]
[1756849734387,0.78114169,111350.0,111340.0,0.01974611]
[1756849734596,0.78114169,111350.0,111340.0,0.04355611]
[1756849735486,0.78214169,111350.0,111340.0,0.04455611]
[1756849735797,0.78314169,111350.0,111340.0,0.04455611]
[1756849736394,0.76132416,111350.0,111340.0,0.02074611]
[1756849736991,0.76132416,111350.0,111340.0,0.04455611]
[1756849737704,0.76132416,111350.0,111340.0,0.02074611]
[1756849740201,0.76132416,111350.0,111340.0,0.04455611]
[1756849741393,0.76132416,111350.0,111340.0,0.02074611]
[1756849741599,1.12761622,111350.0,111340.0,0.02074611]
[1756849743099,1.12761622,111350.0,111340.0,0.00104]
[1756849752699,1.95393622,111350.0,111340.0,0.00104]
[1756849756504,2.59196544,111350.0,111330.0,0.0001]
[1756849756708,1.17961433,111340.0,111330.0,0.0001]
[1756849757010,2.34577433,111340.0,111320.0,0.03386]
[1756849757210,0.04835,111300.0,111290.0,0.08191]
[1756849757399,0.3508,111300.0,111290.0,0.08181]
[1756849757603,0.91082622,111300.0,111290.0,0.1621355]
[1756849757902,0.03245,111330.0,111300.0,0.01417]
[1756849758210,0.68623811,111330.0,111320.0,0.03376]
[1756849758404,0.71082811,111330.0,111320.0,0.08181]
[1756849758604,0.73458811,111330.0,111320.0,0.08181]
[1756849758803,0.76703811,111330.0,111320.0,0.08181]
[1756849759608,0.77203811,111330.0,111320.0,0.08181]
[1756849760210,0.77403811,111330.0,111320.0,0.08181]
[1756849761412,0.68823811,111330.0,111320.0,0.33181]
[1756849761613,0.69223811,111330.0,111320.0,0.33181]
[1756849762512,0.71682811,111330.0,111320.0,0.33181]
[1756849762709,0.74058811,111330.0,111320.0,0.33181]
[1756849763112,0.71682811,111330.0,111320.0,0.33181]
[1756849763308,0.74058811,111330.0,111320.0,0.33181]
[1756849763706,0.77303811,111330.0,111320.0,0.33181]
[1756849765715,0.4068,111330.0,111320.0,0.33181]
[1756849765926,0.77303811,111330.0,111320.0,0.33181]
[1756849766825,1.13927622,111330.0,111320.0,0.08181]
[1756849767025,0.77303811,111330.0,111320.0,0.08181]
[1756849767924,1.13927622,111330.0,111320.0,0.08181]
[1756849769332,0.4068,111330.0,111320.0,0.08181]
[1756849769628,0.77303811,111330.0,111320.0,0.08181]
[1756849772031,1.13927622,111330.0,111320.0,0.08181]
[1756849772919,1.13927622,111330.0,111310.0,0.03376]
[1756849773226,2.31327622,111320.0,111310.0,0.90769]
[1756849775032,2.31727622,111320.0,111310.0,0.90769]
[1756849775732,2.32027622,111320.0,111310.0,0.90769]
[1756849777629,2.32924004,111320.0,111310.0,0.90769]
[1756849778431,2.32924004,111320.0,111310.0,0.87393]
[1756849778638,2.32027622,111320.0,111310.0,0.85068]
[1756849779029,2.32917249,111320.0,111310.0,0.87393]
[1756849781040,2.32917249,111320.0,111310.0,0.90902]
[1756849781240,2.32917249,111320.0,111310.0,0.87393]
[1756849781442,2.32917249,111320.0,111310.0,0.84851]
[1756849781743,2.32917249,111320.0,111310.0,0.87126]
[1756849782839,2.32917249,111320.0,111310.0,0.90635]
[1756849783143,2.32917249,111320.0,111310.0,0.87126]
[1756849783740,2.32917249,111320.0,111310.0,0.90635]
[1756849785144,2.32917249,111320.0,111310.0,0.87126]
[1756849785444,2.32917249,111320.0,111310.0,0.82588]
[1756849785841,2.32917249,111320.0,111310.0,0.84851]
[1756849786143,2.32917249,111320.0,111310.0,0.90635]
[1756849789945,2.32917249,111320.0,111310.0,0.971035]
[1756849791946,2.32917249,111320.0,111310.0,0.913195]
[1756849792148,2.32917249,111320.0,111310.0,0.890565]
[1756849792447,2.32917249,111320.0,111310.0,0.971035]
[1756849792945,2.32027622,111320.0,111310.0,0.971035]
[1756849800957,2.33027622,111320.0,111310.0,0.145155]
[1756849801155,2.32027622,111320.0,111310.0,0.970635]
[1756849801356,2.70027622,111320.0,111310.0,0.970635]
[1756849801654,2.30416058,111320.0,111310.0,0.970635]
[1756849801855,2.31416058,111320.0,111310.0,0.970635]
[1756849803260,1.95416058,111320.0,111310.0,0.970635]
[1756849803457,2.31416058,111320.0,111310.0,0.970635]
[1756849804354,1.9478,111320.0,111310.0,0.970635]
[1756849804662,2.31416058,111320.0,111310.0,0.970635]
[1756849804962,1.95416058,111320.0,111310.0,0.970635]
[1756849805258,2.29416058,111320.0,111310.0,0.970635]
[1756849805855,1.95416058,111320.0,111310.0,0.970635]
[1756849806057,2.30416058,111320.0,111310.0,0.970635]
[1756849806353,1.9378,111320.0,111310.0,0.970635]
[1756849806559,2.30416058,111320.0,111310.0,0.970635]
[1756849808057,2.26416058,111320.0,111310.0,0.970635]
[1756849810360,2.31416058,111320.0,111310.0,0.970635]
[1756849811456,1.95416058,111320.0,111310.0,0.970635]
[1756849811661,2.28416058,111320.0,111310.0,0.970635]
[1756849818369,2.07416058,111320.0,111310.0,0.970635]
[1756849818571,2.31416058,111320.0,111310.0,0.970635]
[1756849820875,2.29416058,111320.0,111310.0,0.970635]
[1756849821866,2.29416058,111320.0,111310.0,0.889845]
[1756849822281,2.29416058,111320.0,111310.0,0.914125]
[1756849822689,2.29416058,111320.0,111310.0,0.937625]
[1756849824389,2.29416058,111320.0,111310.0,0.889845]
[1756849824685,2.29416058,111320.0,111310.0,0.937625]
[1756849828889,2.29416058,111320.0,111310.0,0.975025]
[1756849829290,2.29416058,111320.0,111310.0,0.937625]
[1756849830388,2.29416058,111320.0,111310.0,0.975025]
[1756849833196,2.29416058,111320.0,111310.0,0.937625]
[1756849833690,2.29416058,111320.0,111310.0,0.975025]
[1756849836690,2.29416058,111320.0,111310.0,0.937625]
[1756849837889,2.29416058,111320.0,111310.0,0.889845]
[1756849839097,2.29416058,111320.0,111310.0,0.82516]
[1756849839494,2.3159304,111320.0,111310.0,0.82516]
[1756849842103,2.3159304,111320.0,111310.0,0.84911]
[1756849843100,2.3159304,111320.0,111310.0,0.87258]
[1756849846203,2.29416058,111320.0,111310.0,0.87258]
[1756849847103,2.31591077,111320.0,111310.0,0.87258]
[1756849849305,2.31591077,111320.0,111310.0,0.8248]
[1756849849703,0.07966,111310.0,111300.0,0.146775]
[1756849849896,0.80602058,111310.0,111300.0,0.87218]
[1756849852006,0.80802058,111310.0,111300.0,0.87218]
[1756849852408,0.81102058,111310.0,111300.0,0.87218]
[1756849853303,0.81102058,111310.0,111300.0,0.90675]
[1756849854506,1.06102058,111310.0,111300.0,0.90675]
[1756849854712,1.06102058,111310.0,111300.0,0.82476]
[1756849855214,1.06102058,111310.0,111300.0,0.87218]
[1756849857613,1.06102058,111310.0,111300.0,0.90675]
[1756849858506,1.06102058,111310.0,111300.0,0.82476]
[1756849858712,1.06102058,111310.0,111300.0,0.87218]
[1756849859212,0.81102058,111310.0,111300.0,0.90675]
[1756849859612,0.81102058,111310.0,111300.0,0.87218]
[1756849860309,0.81102058,111310.0,111300.0,0.90675]
[1756849861714,1.1775964,111310.0,111300.0,0.90675]
[1756849866415,1.1775964,111310.0,111300.0,0.87218]
[1756849866623,1.1775964,111310.0,111300.0,0.82476]
[1756849867018,1.1775964,111310.0,111300.0,0.87218]
[1756849867220,0.466416,111310.0,111300.0,0.87218]
[1756849867517,1.1993524,111310.0,111300.0,0.90675]
[1756849869820,1.1993524,111310.0,111300.0,0.87218]
[1756849870021,1.1993524,111310.0,111300.0,0.84871]
[1756849870218,1.1993524,111310.0,111300.0,0.87218]
[1756849870721,1.1993524,111310.0,111300.0,0.90826]
[1756849873118,1.1993524,111310.0,111300.0,0.87218]
[1756849873717,1.1993524,111310.0,111300.0,0.90826]
[1756849878522,1.1993524,111310.0,111300.0,0.92277]
[1756849880822,1.1993524,111310.0,111300.0,0.90826]
[1756849888633,1.1993524,111310.0,111300.0,0.0835]
[1756849890422,1.5658206,111310.0,111300.0,0.04816]
[1756849890628,1.5658206,111310.0,111300.0,0.08424]
[1756849890829,1.1993524,111310.0,111300.0,0.08424]
[1756849891127,1.5658206,111310.0,111300.0,0.08424]
[1756849891333,1.1993524,111310.0,111300.0,0.08424]
[1756849892437,1.5658206,111310.0,111300.0,0.08424]
[1756849893130,1.1993524,111310.0,111300.0,0.08424]
[1756849893640,1.5658206,111310.0,111300.0,0.02395]
[1756849893937,1.5658206,111310.0,111290.0,0.03618]
[1756849894130,0.466416,111310.0,111300.0,0.024]
[1756849894331,0.466416,111310.0,111290.0,0.03618]
[1756849895133,1.1475146,111300.0,111290.0,0.08439]
[1756849895438,1.5717206,111300.0,111290.0,0.08429]
[1756849897236,1.5727206,111300.0,111290.0,0.08429]
[1756849898027,1.5737206,111300.0,111290.0,0.08429]
[1756849898230,2.3978406,111300.0,111290.0,0.08429]
[1756849902246,1.5737206,111300.0,111290.0,0.08429]
[1756849903143,0.0788,111290.0,111280.0,0.10246178]
[1756849903339,0.8334924,111290.0,111280.0,0.10236178]
[1756849904042,0.8334924,111290.0,111280.0,0.10774827]
[1756849904238,0.8344924,111290.0,111280.0,0.10774827]
[1756849904444,0.8127364,111290.0,111280.0,0.10774827]
[1756849904844,0.8137364,111290.0,111280.0,0.10774827]
[1756849905043,1.1437364,111290.0,111280.0,0.10774827]
[1756849910951,1.1437364,111290.0,111280.0,0.10839617]
[1756849912149,1.1437364,111290.0,111280.0,0.10898151]
[1756849919650,0.012,111290.0,111280.0,0.10898151]
[1756849919856,0.3884682,111290.0,111280.0,0.10898151]
[1756849920058,0.3884682,111290.0,111280.0,0.35898151]
[1756849920256,0.7384682,111290.0,111280.0,0.35898151]
[1756849920758,0.3684682,111290.0,111280.0,0.35898151]
[1756849923367,0.3913482,111290.0,111280.0,0.35898151]
[1756849923553,0.39136049,111290.0,111280.0,0.35898151]
[1756849924057,0.02488,111290.0,111280.0,0.35898151]
[1756849924361,0.39136049,111290.0,111280.0,0.35898151]
[1756849924559,0.41483049,111290.0,111280.0,0.35898151]
[1756849929058,0.44728049,111290.0,111280.0,0.35898151]